bitfinex-derivatives/quotes_BTCF0:USTF0_20210111
["timestamp","ask_amount","ask_price","bid_price","bid_amount"]
[1610393833955,5.01845,31725.0,31689.0,0.28092117]
[1610393834656,0.13632608,31690.0,31689.0,0.28092117]
[1610393835056,0.07428,31715.0,31689.0,0.28092117]
[1610393836658,0.13632608,31690.0,31689.0,0.28092117]
[1610393837058,0.11331,31707.0,31689.0,0.28092117]
[1610393837658,0.08521,31707.0,31689.0,0.28092117]
[1610393837859,0.10367,31733.0,31689.0,0.28092117]
[1610393838460,0.67267623,31755.0,31689.0,0.28092117]
[1610393838660,0.67267623,31755.0,31739.0,0.13632608]
[1610393838961,0.67273093,31756.0,31723.0,0.08014]
[1610393839362,0.96239141,31757.0,31723.0,0.08014]
[1610393839561,1.13290925,31756.0,31723.0,0.08014]
[1610393839761,1.24084925,31756.0,31723.0,0.08014]
[1610393839962,0.10794,31756.0,31723.0,0.08014]
[1610393840762,0.10794,31756.0,31734.0,0.13632608]
[1610393841763,0.10794,31756.0,31723.0,0.08014]
[1610393842764,0.13632608,31724.0,31723.0,0.08014]
[1610393842963,0.13632608,31724.0,31714.0,0.13632608]
[1610393843563,0.13632608,31724.0,31700.0,3.6747]
[1610393843765,0.22822608,31724.0,31700.0,3.6747]
[1610393843964,0.22822608,31724.0,31678.0,2.23772819]
[1610393844166,0.22822608,31724.0,31675.0,2.23785681]
[1610393844567,0.22822608,31724.0,31673.0,2.23833906]
[1610393844767,0.0919,31724.0,31673.0,2.23833906]
[1610393844968,0.0919,31724.0,31672.0,5.0851]
[1610393845168,0.13632608,31690.0,31672.0,5.0851]
[1610393845367,0.13632608,31690.0,31667.0,2.23846197]
[1610393845570,0.13632608,31690.0,31663.0,2.23972238]
[1610393845967,0.10642,31706.0,31672.0,4.1587]
[1610393847268,0.10642,31706.0,31690.0,0.13632608]
[1610393847668,3.7203,31719.0,31690.0,0.13632608]
[1610393848067,3.7203,31719.0,31689.0,0.31092117]
[1610393848967,0.2972,31723.0,31689.0,0.31092117]
[1610393849166,0.2972,31723.0,31708.0,0.13632608]
[1610393849367,0.2972,31723.0,31698.0,0.078]
[1610393851171,0.2972,31723.0,31722.0,0.13632608]
[1610393851370,0.2972,31723.0,31698.0,0.078]
[1610393851570,0.2972,31723.0,31712.0,0.07349]
[1610393853276,0.2972,31723.0,31714.0,0.13632608]
[1610393853674,0.2972,31723.0,31698.0,0.078]
[1610393853875,0.39229,31723.0,31698.0,0.078]
[1610393854276,0.26839148,31723.0,31698.0,0.078]
[1610393854479,0.26839148,31723.0,31696.0,4.3139]
[1610393855177,0.26839148,31723.0,31704.0,0.13632608]
[1610393855377,0.26839148,31723.0,31696.0,4.3139]
[1610393856279,0.26839148,31723.0,31689.0,0.31092117]
[1610393856679,4.898,31719.0,31689.0,0.31092117]
[1610393857079,1.0,31715.0,31689.0,0.31092117]
[1610393857279,0.13632608,31690.0,31689.0,0.31092117]
[1610393858781,0.10005,31698.0,31689.0,0.31092117]
[1610393859184,0.10005,31698.0,31689.0,0.40457117]
[1610393859389,0.10005,31698.0,31697.0,0.13632608]
[1610393859786,0.11149,31715.0,31697.0,0.13632608]
[1610393860595,0.09509,31723.0,31697.0,0.13632608]
[1610393860596,0.09509,31723.0,31697.0,5.05462608]
[1610393860807,0.2909,31744.0,31697.0,5.05462608]
[1610393860808,0.56658308,31733.0,31697.0,0.13632608]
[1610393860992,0.56658308,31733.0,31715.0,0.02]
[1610393861205,0.56658308,31733.0,31715.0,0.13946]
[1610393861386,0.56642905,31742.0,31715.0,0.13946]
[1610393861589,0.56642905,31742.0,31741.0,0.13632608]
[1610393861786,0.56655597,31748.0,31741.0,0.13632608]
[1610393862387,0.56655597,31748.0,31737.0,0.07478]
[1610393862590,0.56652103,31752.0,31737.0,0.07478]
[1610393862788,0.56657556,31753.0,31737.0,0.07478]
[1610393863189,0.56646783,31756.0,31737.0,0.07478]
[1610393863588,0.56646783,31756.0,31755.0,0.13632608]
[1610393863789,0.94372319,31769.0,31755.0,0.13632608]
[1610393863790,0.5663094,31762.0,31755.0,0.13632608]
[1610393864590,0.94372319,31769.0,31755.0,0.13632608]
[1610393864591,0.56578106,31774.0,31755.0,0.13632608]
[1610393864989,0.56575849,31775.0,31755.0,0.13632608]
[1610393865192,0.56568111,31781.0,31755.0,0.13632608]
[1610393865590,0.56499211,31784.0,31780.0,0.13632608]
[1610393865991,0.56498079,31787.0,31780.0,0.13632608]
[1610393866393,0.56428823,31786.0,31780.0,0.13632608]
[1610393866792,0.46000499,31789.0,31780.0,0.13632608]
[1610393866793,0.56429206,31789.0,31780.0,0.13632608]
[1610393866993,0.56429206,31789.0,31774.0,0.11219]
[1610393867594,0.56429206,31789.0,31776.0,0.13632608]
[1610393867796,1.39109529,31793.0,31776.0,0.13632608]
[1610393867994,0.56357767,31793.0,31776.0,0.13632608]
[1610393868396,0.56353778,31791.0,31776.0,0.13632608]
[1610393868793,0.5628976,31798.0,31776.0,0.13632608]
[1610393869193,0.93803762,31805.0,31776.0,0.13632608]
[1610393869194,0.6644008,31801.0,31776.0,0.13632608]
[1610393869694,0.56198318,31806.0,31800.0,0.13632608]
[1610393870095,0.56197142,31811.0,31800.0,0.13632608]
[1610393870296,0.56197142,31811.0,31800.0,0.21410608]
[1610393870495,0.56107746,31813.0,31800.0,0.21410608]
[1610393870896,0.56102841,31819.0,31800.0,0.21410608]
[1610393871296,0.561019,31823.0,31800.0,0.21410608]
[1610393871697,0.55993512,31833.0,31822.0,0.13632608]
[1610393872098,0.82115111,31837.0,31822.0,0.13632608]
[1610393872099,0.55985733,31837.0,31822.0,0.13632608]
[1610393872398,0.2836,31845.0,31822.0,0.13632608]
[1610393872597,1.0,31849.0,31822.0,0.13632608]
[1610393873100,0.93094999,31856.0,31820.0,4.7797]
[1610393873400,0.93086327,31854.0,31820.0,4.7797]
[1610393873601,0.93086327,31854.0,31846.0,0.13632608]
[1610393873802,0.92902524,31862.0,31846.0,0.13632608]
[1610393874201,0.92901963,31863.0,31846.0,0.13632608]
[1610393874602,0.55645212,31855.0,31846.0,0.1344125]
[1610393874801,0.55644402,31856.0,31846.0,0.1344125]
[1610393875001,0.09428,31855.0,31838.0,3.6535]
[1610393875605,0.13632608,31849.0,31845.0,0.13632608]
[1610393876502,0.13632608,31849.0,31838.0,3.6535]
[1610393876701,0.13632608,31849.0,31824.0,0.08641]
[1610393877803,0.13632608,31849.0,31838.0,0.13632608]
[1610393878004,0.13632608,31849.0,31832.0,0.09019]
[1610393878204,0.13632608,31849.0,31824.0,0.08641]
[1610393878807,0.5192,31848.0,31817.0,0.07562]
[1610393879205,0.59241,31848.0,31808.0,5.0855]
[1610393879808,0.59241,31848.0,31819.0,0.13632608]
[1610393881710,0.59241,31848.0,31831.0,0.13632608]
[1610393882111,0.59241,31848.0,31816.0,0.09901]
[1610393883713,0.59241,31848.0,31827.0,0.13632608]
[1610393884315,0.59241,31848.0,31816.0,0.09901]
[1610393885115,1.0,31845.0,31808.0,5.0855]
[1610393885326,0.0933,31844.0,31808.0,5.0855]
[1610393885516,1.0,31845.0,31808.0,5.0855]
[1610393885718,1.0,31845.0,31829.0,0.13632608]
[1610393886617,0.75109624,31845.0,31829.0,0.13632608]
[1610393887018,0.07321,31848.0,31829.0,0.13632608]
[1610393887217,0.09428,31855.0,31829.0,0.13632608]
[1610393887417,0.2967,31864.0,31829.0,0.13632608]
[1610393887817,0.13632608,31848.0,31823.0,4.654]
[1610393888018,0.22290608,31848.0,31823.0,4.654]
[1610393888219,0.08658,31848.0,31823.0,4.654]
[1610393889019,0.08279,31855.0,31823.0,4.654]
[1610393890019,0.08279,31855.0,31822.0,0.08876]
[1610393892523,0.08279,31855.0,31832.0,0.13632608]
[1610393893525,0.2967,31864.0,31832.0,0.13632608]
[1610393894127,0.2967,31864.0,31829.0,0.07186]
[1610393894326,0.38929,31864.0,31829.0,0.07186]
[1610393894528,0.38929,31864.0,31832.0,0.13632608]
[1610393894729,0.38929,31864.0,31829.0,0.07186]
[1610393895728,0.38929,31864.0,31829.0,0.35246622]
[1610393896128,0.48409,31864.0,31829.0,0.35246622]
[1610393896329,3.5212,31858.0,31829.0,0.35246622]
[1610393896528,0.13632608,31830.0,31829.0,0.35246622]
[1610393896929,0.13632608,31830.0,31829.0,0.25856622]
[1610393897328,0.22934608,31830.0,31829.0,0.25856622]
[1610393898128,0.92734608,31830.0,31829.0,0.25856622]
[1610393898528,0.92734608,31830.0,31829.0,0.14345166]
[1610393898729,0.92734608,31830.0,31792.0,4.156]
[1610393899330,1.02284608,31830.0,31792.0,4.156]
[1610393900431,0.32484608,31830.0,31750.0,0.2962]
[1610393900632,0.18852,31830.0,31786.0,0.13632608]
[1610393900834,4.4643,31818.0,31786.0,0.13632608]
[1610393901232,4.54921,31818.0,31750.0,4.9202]
[1610393901635,0.292,31817.0,31750.0,4.9202]
[1610393902532,0.292,31817.0,31788.0,0.13632608]
[1610393903134,0.292,31817.0,31783.0,0.0923]
[1610393903333,0.04085342,31817.0,31783.0,0.0923]
[1610393904635,0.13632608,31784.0,31783.0,0.0923]
[1610393905035,0.13632608,31784.0,31754.0,3.6356]
[1610393905437,0.22297608,31784.0,31754.0,3.6356]
[1610393905635,0.22297608,31784.0,31726.0,0.2844]
[1610393905836,4.7442,31775.0,31716.0,5.212]
[1610393906036,4.81923,31775.0,31716.0,5.212]
[1610393906639,0.13632608,31730.0,31724.0,0.13632608]
[1610393907237,0.13632608,31730.0,31708.0,4.5137]
[1610393907439,4.0013,31751.0,31740.0,0.03]
[1610393907636,0.1026,31761.0,31740.0,0.03]
[1610393908737,0.1026,31761.0,31743.0,0.13632608]
[1610393909538,0.1026,31761.0,31740.0,0.03]
[1610393910139,0.1026,31761.0,31740.0,0.0269]
[1610393910740,0.13632608,31741.0,31740.0,0.0269]
[1610393911340,0.1026,31761.0,31740.0,0.0269]
[1610393912051,1.0,31771.0,31740.0,0.0269]
[1610393912649,1.0,31771.0,31770.0,0.13632608]
[1610393913049,4.6239,31792.0,31770.0,0.13632608]
[1610393913450,0.2717,31797.0,31770.0,0.13632608]
[1610393913850,4.4215,31810.0,31770.0,0.13632608]
[1610393914650,0.13632608,31792.0,31791.0,0.13632608]
[1610393915451,0.10665,31806.0,31773.0,4.6618]
[1610393916456,0.0946,31805.0,31773.0,4.6618]
[1610393916652,0.5593,31804.0,31773.0,4.6618]
[1610393916855,0.13632608,31776.0,31773.0,4.6618]
[1610393917053,0.13632608,31776.0,31768.0,0.07293]
[1610393918056,0.13632608,31776.0,31761.0,0.06905]
[1610393918255,0.13632608,31776.0,31748.0,4.7644]
[1610393918456,0.13632608,31776.0,31740.0,0.0269]
[1610393918656,3.9264,31773.0,31740.0,0.0269]
[1610393918856,0.13632608,31746.0,31744.0,0.13632608]
[1610393919255,0.06858,31757.0,31744.0,0.13632608]
[1610393920356,0.06858,31757.0,31740.0,0.0269]
[1610393921557,0.06274672,31771.0,31740.0,0.0269]
[1610393921758,4.01598,31773.0,31740.0,0.0269]
[1610393921963,0.08958,31773.0,31740.0,0.0269]
[1610393922156,0.08958,31773.0,31742.0,3.7372]
[1610393922357,1.03085091,31782.0,31742.0,3.7372]
[1610393922358,0.56020603,31782.0,31742.0,3.7372]
[1610393922557,0.56020603,31782.0,31740.0,0.0269]
[1610393922758,0.66669292,31796.0,31751.0,4.8122]
[1610393922958,4.9167,31789.0,31751.0,4.88361]
[1610393923159,0.07171,31789.0,31751.0,0.07141]
[1610393923357,5.0856,31776.0,31751.0,0.07141]
[1610393923558,5.16331,31776.0,31751.0,0.07141]
[1610393924160,0.13632608,31752.0,31751.0,0.07141]
[1610393924564,0.10613,31767.0,31751.0,0.07141]
[1610393925362,5.0856,31776.0,31751.0,0.07141]
[1610393925764,0.07171,31789.0,31751.0,0.07141]
[1610393926164,0.66705602,31796.0,31791.0,0.16888522]
[1610393926364,0.5731,31795.0,31791.0,0.16888522]
[1610393926766,0.13632608,31792.0,31791.0,0.16888522]
[1610393926965,1.22962608,31792.0,31791.0,0.16888522]
[1610393927168,1.0933,31792.0,31791.0,0.16888522]
[1610393927366,1.0,31792.0,31791.0,0.16888522]
[1610393928067,2.69389307,31792.0,31791.0,0.07301011]
[1610393928267,2.23369253,31792.0,31791.0,0.07301011]
[1610393928468,1.0,31792.0,31791.0,0.07301011]
[1610393928666,1.13632608,31792.0,31791.0,0.07301011]
[1610393928868,1.13632608,31792.0,31791.0,0.07109295]
[1610393929068,0.13632608,31792.0,31791.0,0.07109295]
[1610393929870,0.5731,31795.0,31791.0,0.07109295]
[1610393930669,0.13632608,31792.0,31791.0,0.07109295]
[1610393931974,0.10645,31796.0,31791.0,0.07109295]
[1610393932173,0.66697953,31796.0,31791.0,0.07109295]
[1610393932370,0.56052953,31796.0,31791.0,0.07109295]
[1610393932572,0.56048303,31803.0,31791.0,0.07109295]
[1610393932773,0.56048303,31803.0,31795.0,0.13632608]
[1610393932972,0.67254229,31804.0,31795.0,0.13632608]
[1610393932973,0.56040846,31804.0,31795.0,0.13632608]
[1610393933372,0.6724528,31806.0,31795.0,0.13632608]
[1610393933373,0.56038125,31806.0,31795.0,0.13632608]
[1610393933773,0.56040539,31807.0,31795.0,0.13632608]
[1610393933972,0.56035518,31810.0,31795.0,0.13632608]
[1610393934574,7.0836,31835.0,31795.0,0.13632608]
[1610393934575,0.93391127,31824.0,31795.0,0.13632608]
[1610393934775,1.8676358,31839.0,31793.0,0.07731]
[1610393934776,4.8745,31821.0,31809.0,0.13632608]
[1610393934972,0.06919,31821.0,31809.0,0.13632608]
[1610393935973,1.0118646,31834.0,31809.0,0.13632608]
[1610393936174,1.0118646,31834.0,31809.0,0.21864608]
[1610393936376,0.07814,31834.0,31809.0,0.21864608]
[1610393936775,0.07814,31834.0,31833.0,0.13632608]
[1610393936975,0.07814,31834.0,31817.0,0.07874]
[1610393938176,0.08675,31841.0,31817.0,0.07874]
[1610393938777,0.08675,31841.0,31834.0,0.13632608]
[1610393939177,1.34116095,31852.0,31834.0,0.13632608]
[1610393939578,0.93388456,31857.0,31834.0,0.13632608]
[1610393939980,1.0459283,31862.0,31834.0,0.13632608]
[1610393939981,0.93383306,31858.0,31834.0,0.13632608]
[1610393940578,0.40562163,31864.0,31834.0,0.13632608]
[1610393940579,0.682,31857.0,31834.0,0.13632608]
[1610393940779,0.13632608,31835.0,31834.0,0.13632608]
[1610393941379,0.12622608,31835.0,31834.0,0.13632608]
[1610393941580,0.40592225,31854.0,31833.0,0.07264]
[1610393942880,0.13632608,31834.0,31833.0,0.07264]
[1610393943280,0.13632608,31834.0,31826.0,0.10458]
[1610393944080,0.13632608,31834.0,31817.0,0.07874]
[1610393944282,0.13632608,31834.0,31800.0,4.432]
[1610393944880,4.08301,31837.0,31800.0,4.432]
[1610393945081,4.08301,31837.0,31800.0,4.50242]
[1610393946781,4.08301,31837.0,31807.0,0.13632608]
[1610393946982,0.70030657,31834.0,31807.0,0.08983]
[1610393947382,4.0417,31821.0,31807.0,0.08983]
[1610393947582,4.11846,31821.0,31807.0,0.08983]
[1610393947781,4.11846,31821.0,31807.0,0.04553]
[1610393947983,4.11846,31821.0,31800.0,0.07042]
[1610393948381,5.61846,31821.0,31800.0,0.07042]
[1610393948582,4.11846,31821.0,31780.0,5.0752]
[1610393948781,0.13632608,31792.0,31781.0,0.13632608]
[1610393949384,0.13632608,31792.0,31791.0,1.07109295]
[1610393951285,0.77242608,31792.0,31791.0,0.07109295]
[1610393952486,0.6361,31792.0,31791.0,0.07109295]
[1610393953101,0.77242608,31792.0,31791.0,0.07109295]
[1610393953689,0.6361,31792.0,31791.0,0.07109295]
[1610393954488,1.11112,31802.0,31791.0,0.07109295]
[1610393955089,1.11112,31802.0,31791.0,0.20741903]
[1610393955090,0.13632608,31792.0,31791.0,0.20741903]
[1610393955693,0.11112,31802.0,31791.0,0.20741903]
[1610393955892,0.11112,31809.0,31791.0,0.20741903]
[1610393956091,0.42321224,31817.0,31791.0,0.07109295]
[1610393956491,1.36294247,31817.0,31791.0,0.07109295]
[1610393956691,1.36294247,31817.0,31802.0,0.0189]
[1610393956894,0.93974549,31816.0,31802.0,0.0189]
[1610393957092,0.13632608,31803.0,31802.0,0.0189]
[1610393958197,0.10745,31813.0,31802.0,0.0189]
[1610393958997,0.13632608,31803.0,31802.0,0.0189]
[1610393960198,0.10745,31813.0,31802.0,0.0189]
[1610393960998,0.13632608,31803.0,31802.0,0.0189]
[1610393962500,0.04435908,31803.0,31802.0,0.0189]
[1610393965705,4.64644908,31803.0,31802.0,0.0189]
[1610393965908,4.55946341,31803.0,31802.0,0.0189]
[1610393967207,4.69578949,31803.0,31802.0,0.0189]
[1610393967408,4.69578949,31803.0,31743.0,2.44548862]
[1610393967607,0.22571608,31803.0,31747.0,2.05808643]
[1610393967808,4.3445,31754.0,31747.0,1.75308643]
[1610393968011,0.07483,31754.0,31744.0,2.03651281]
[1610393968209,0.0948,31753.0,31737.0,1.0]
[1610393968413,4.8064,31745.0,31737.0,0.66]
[1610393968608,1.5,31744.0,31721.0,2.63630492]
[1610393968813,1.5,31744.0,31628.0,1.0]
[1610393968814,3.7198,31722.0,31693.0,2.63697402]
[1610393969009,0.0958,31721.0,31693.0,2.63697402]
[1610393969209,0.13632608,31694.0,31673.0,2.63803373]
[1610393969610,0.13632608,31694.0,31673.0,0.47978357]
[1610393970011,0.13632608,31694.0,31665.0,0.13632608]
[1610393970211,0.5538,31694.0,31663.0,2.63548414]
[1610393970411,0.5538,31694.0,31655.0,3.6569]
[1610393970611,0.07906,31696.0,31649.0,2.63653847]
[1610393970811,4.2683,31692.0,31649.0,0.07343]
[1610393971013,0.07906,31696.0,31649.0,0.07343]
[1610393972011,1.0,31705.0,31649.0,0.07343]
[1610393972211,1.0,31705.0,31664.0,1.5]
[1610393972411,1.0,31705.0,31664.0,1.58654]
[1610393972612,0.9605,31705.0,31664.0,1.58654]
[1610393972813,0.9605,31705.0,31676.0,1.5]
[1610393973012,0.00393812,31718.0,31688.0,4.0815]
[1610393973213,0.00393149,31731.0,31688.0,4.16398]
[1610393973414,0.00393149,31731.0,31726.0,0.13632608]
[1610393973615,0.8239277,31737.0,31726.0,0.13632608]
[1610393973616,0.00392628,31736.0,31726.0,0.13632608]
[1610393974018,0.10428564,31745.0,31726.0,0.13632608]
[1610393974415,0.10036,31745.0,31726.0,0.13632608]
[1610393974614,0.00392392,31747.0,31726.0,0.13632608]
[1610393974815,0.08827741,31754.0,31726.0,0.13632608]
[1610393975218,0.07483,31754.0,31726.0,0.13632608]
[1610393975418,0.00392196,31756.0,31753.0,0.13632608]
[1610393975619,0.003919,31758.0,31753.0,0.13632608]
[1610393976019,0.00391877,31759.0,31753.0,0.13632608]
[1610393976419,0.0134345,31762.0,31753.0,0.13632608]
[1610393976619,0.33723752,31763.0,31757.0,4.7328]
[1610393976820,0.01883941,31768.0,31757.0,4.80951]
[1610393977019,0.50162955,31770.0,31757.0,4.80951]
[1610393977220,0.82054848,31791.0,31757.0,4.80951]
[1610393977620,0.58562826,31793.0,31790.0,0.13632608]
[1610393978020,1.53375462,31807.0,31790.0,0.13632608]
[1610393978021,0.93210274,31803.0,31790.0,0.13440916]
[1610393978221,0.69009263,31809.0,31790.0,0.13440916]
[1610393978222,0.93207604,31804.0,31790.0,0.13440916]
[1610393978521,0.46002359,31802.0,31790.0,0.13440916]
[1610393978722,0.46002359,31802.0,31781.0,3.7821]
[1610393978922,0.4599997,31803.0,31781.0,3.7821]
[1610393979221,0.4600009,31804.0,31781.0,3.7821]
[1610393979624,0.4542009,31804.0,31803.0,0.13632608]
[1610393980026,0.07848,31805.0,31803.0,0.04050111]
[1610393980224,0.07848,31805.0,31788.0,0.07801]
[1610393980824,0.45997358,31804.0,31788.0,0.07801]
[1610393981024,0.45997358,31804.0,31781.0,3.7821]
[1610393981624,0.45997358,31804.0,31794.0,0.13632608]
[1610393982025,0.07848,31805.0,31794.0,0.13632608]
[1610393983024,1.02538906,31815.0,31788.0,0.07068]
[1610393983424,0.093,31815.0,31788.0,0.07068]
[1610393983624,0.13632608,31789.0,31788.0,0.07068]
[1610393983827,0.09375,31808.0,31788.0,0.07068]
[1610393984223,0.04151951,31808.0,31788.0,0.07068]
[1610393984424,0.45994755,31807.0,31788.0,0.07068]
[1610393985325,0.0935,31806.0,31789.0,0.5824]
[1610393985525,0.0935,31806.0,31800.0,0.13632608]
[1610393986329,0.0935,31806.0,31800.0,0.23876608]
[1610393986526,0.93243873,31815.0,31800.0,0.23876608]
[1610393986729,1.02752157,31816.0,31801.0,0.0935]
[1610393987128,1.39228965,31815.0,31801.0,0.0935]
[1610393987327,1.48706965,31815.0,31801.0,0.0935]
[1610393987529,0.13632608,31802.0,31801.0,0.0935]
[1610393987730,0.06845829,31802.0,31801.0,0.0935]
[1610393988129,0.0951,31816.0,31801.0,0.0935]
[1610393988329,1.04404603,31831.0,31812.0,5.1959]
[1610393988530,0.45964144,31832.0,31812.0,0.10532]
[1610393988935,2.19275203,31839.0,31812.0,0.10532]
[1610393989333,0.45965568,31831.0,31812.0,0.10532]
[1610393989534,0.45965568,31831.0,31830.0,0.13632608]
[1610393989733,0.22922608,31835.0,31830.0,0.07112608]
[1610393990134,0.45960523,31834.0,31812.0,0.10532]
[1610393991233,0.45960523,31834.0,31797.0,4.1639]
[1610393991436,0.45963058,31836.0,31797.0,4.1639]
[1610393991634,0.45963058,31836.0,31826.0,0.13632608]
[1610393991834,0.45956576,31833.0,31826.0,0.13632608]
[1610393992034,0.45956576,31833.0,31808.0,0.1093]
[1610393992235,0.45955646,31835.0,31808.0,0.1093]
[1610393992635,0.4595865,31836.0,31808.0,0.1093]
[1610393993035,1.0,31835.0,31808.0,0.1093]
[1610393993836,0.45960558,31834.0,31808.0,0.1093]
[1610393994255,1.17800558,31834.0,31808.0,0.1093]
[1610393994444,0.7184,31834.0,31808.0,0.1093]
[1610393994640,2.2184,31834.0,31808.0,0.1093]
[1610393994844,2.2184,31834.0,31757.0,2.234454]
[1610393994845,1.5,31834.0,31757.0,2.234454]
[1610393995049,0.07911,31837.0,31779.0,4.9895]
[1610393995050,1.5,31823.0,31779.0,4.9895]
[1610393995440,1.5883,31823.0,31779.0,4.9895]
[1610393995641,0.13632608,31789.0,31781.0,0.13632608]
[1610393997044,5.0812,31803.0,31763.0,4.4424]
[1610393997447,5.0812,31803.0,31780.0,0.10139]
[1610393999745,5.0812,31803.0,31801.0,0.13632608]
[1610393999947,0.1101,31816.0,31801.0,0.13632608]
[1610394000146,4.8262,31815.0,31801.0,0.13632608]
[1610394000946,0.1101,31816.0,31790.0,0.09414]
[1610394001145,1.04478565,31832.0,31790.0,0.09414]
[1610394001146,6.65768154,31830.0,31790.0,0.09414]
[1610394001546,0.41135636,31829.0,31790.0,0.09414]
[1610394001749,1.5,31828.0,31800.0,0.13632608]
[1610394001946,0.60642636,31829.0,31800.0,0.13632608]
[1610394002148,0.60642636,31829.0,31790.0,0.09414]
[1610394002347,1.04559645,31828.0,31790.0,0.09414]
[1610394002748,1.65247242,31829.0,31790.0,0.09414]
[1610394002948,1.0,31822.0,31790.0,0.09414]
[1610394003348,1.0886,31822.0,31790.0,0.09414]
[1610394003749,0.13632608,31813.0,31802.0,0.13632608]
[1610394003947,0.0933,31812.0,31802.0,0.13632608]
[1610394004148,0.09931,31813.0,31790.0,0.09414]
[1610394005150,0.09931,31813.0,31788.0,5.2767]
[1610394005350,0.09931,31813.0,31790.0,0.10555]
[1610394005750,0.0098431,31822.0,31812.0,0.13632608]
[1610394006151,0.0098431,31822.0,31796.0,4.3744]
[1610394006353,0.0098431,31822.0,31790.0,0.10555]
[1610394006551,4.9532,31820.0,31790.0,0.10555]
[1610394006751,1.593,31819.0,31790.0,0.10555]
[1610394006955,1.0,31814.0,31790.0,0.10555]
[1610394007151,2.5,31814.0,31808.0,0.36885719]
[1610394007351,0.5561,31813.0,31808.0,0.36885719]
[1610394007556,1.5,31812.0,31808.0,0.25795719]
[1610394007756,1.5,31812.0,31790.0,0.10555]
[1610394007953,1.5,31812.0,31780.0,0.09784]
[1610394008153,0.13632608,31781.0,31770.0,0.0948]
[1610394008356,0.13632608,31781.0,31742.0,2.24420188]
[1610394008554,0.13632608,31781.0,31746.0,4.7429]
[1610394009166,4.3422,31771.0,31732.0,2.24511721]
[1610394009353,4.42889,31771.0,31733.0,0.0935]
[1610394009556,4.42889,31771.0,31734.0,0.0958]
[1610394010155,4.42889,31771.0,31748.0,0.13632608]
[1610394010553,0.0933,31770.0,31744.0,0.0942]
[1610394010753,0.0933,31770.0,31740.0,0.0936]
[1610394011158,1.5933,31770.0,31740.0,0.0936]
[1610394011355,1.5933,31770.0,31733.0,0.08288]
[1610394011854,1.5933,31770.0,31733.0,8e-05]
[1610394012058,1.33020843,31770.0,31733.0,8e-05]
[1610394012256,1.33020843,31770.0,31734.0,0.0959]
[1610394012855,1.33020843,31770.0,31729.0,0.0944]
[1610394013056,1.0,31760.0,31729.0,0.0944]
[1610394013256,0.13632608,31730.0,31729.0,0.0406]
[1610394014456,4.9822,31733.0,31729.0,0.0406]
[1610394015058,4.9822,31733.0,31729.0,0.12281]
[1610394015256,4.9822,31733.0,31731.0,0.13632608]
[1610394015558,0.07525,31760.0,31731.0,0.13632608]
[1610394017164,0.07525,31760.0,31740.0,0.13632608]
[1610394018361,4.2804,31769.0,31740.0,0.13632608]
[1610394018561,4.2804,31769.0,31737.0,0.08837]
[1610394018763,4.2804,31769.0,31737.0,0.06507]
[1610394018960,1.0,31752.0,31723.0,4.7472]
[1610394019164,1.0825,31752.0,31692.0,2.24095733]
[1610394019364,3.8426,31747.0,31709.0,0.13632608]
[1610394019564,3.56390307,31747.0,31709.0,0.13632608]
[1610394019765,3.56390307,31747.0,31705.0,4.6766]
[1610394019963,3.31171118,31747.0,31705.0,4.6766]
[1610394020565,0.0941,31746.0,31705.0,4.6766]
[1610394020765,3.40711118,31747.0,31706.0,0.0944]
[1610394020766,3.31221118,31747.0,31706.0,0.0944]
[1610394020965,3.19581118,31747.0,31706.0,0.10685]
[1610394021164,0.0825,31752.0,31706.0,0.10685]
[1610394021564,0.0825,31752.0,31735.0,0.13632608]
[1610394021965,0.0825,31752.0,31731.0,0.10789]
[1610394022367,0.72,31752.0,31731.0,0.10789]
[1610394022768,0.72,31752.0,31713.0,4.9053]
[1610394023174,0.0953,31751.0,31713.0,4.9053]
[1610394023370,0.0952,31750.0,31713.0,4.9053]
[1610394023769,0.72,31752.0,31713.0,4.9053]
[1610394023969,0.72,31752.0,31733.0,0.13632608]
[1610394024369,0.57908466,31752.0,31732.0,0.07384]
[1610394025173,0.0946,31751.0,31732.0,0.07384]
[1610394025372,0.0935,31750.0,31732.0,0.07384]
[1610394025571,0.0935,31750.0,31733.0,0.0936]
[1610394025972,0.0935,31750.0,31740.0,0.13632608]
[1610394026377,0.57908466,31752.0,31740.0,0.21125608]
[1610394026981,0.57908466,31752.0,31740.0,0.07493]
[1610394027988,0.13632608,31741.0,31740.0,0.07493]
[1610394028196,0.13632608,31741.0,31732.0,0.07384]
[1610394028575,0.13632608,31741.0,31723.0,0.13632608]
[1610394029175,0.13632608,31741.0,31713.0,0.09891]
[1610394029374,0.13632608,31741.0,31710.0,4.5851]
[1610394029976,0.0943,31743.0,31715.0,0.13632608]
[1610394030184,0.09616,31746.0,31715.0,0.21602608]
[1610394030377,0.09616,31746.0,31719.0,5.0526]
[1610394030577,0.08735,31753.0,31719.0,5.0526]
[1610394030778,0.08987,31762.0,31719.0,5.0526]
[1610394031177,0.2805,31770.0,31719.0,5.0526]
[1610394031789,0.0937,31769.0,31719.0,5.0526]
[1610394031985,0.2805,31770.0,31740.0,0.13632608]
[1610394032877,0.0933,31769.0,31740.0,0.13632608]
[1610394033078,0.2805,31770.0,31740.0,0.13632608]
[1610394033585,0.2805,31770.0,31734.0,0.0703]
[1610394033982,0.2805,31770.0,31739.0,0.13632608]
[1610394034183,0.0945,31769.0,31739.0,0.13632608]
[1610394034383,0.2805,31770.0,31739.0,0.13632608]
[1610394034582,0.2805,31770.0,31734.0,0.0703]
[1610394034987,1.5,31769.0,31719.0,5.0526]
[1610394035186,0.2805,31770.0,31719.0,5.0526]
[1610394035384,0.0957,31769.0,31719.0,5.0526]
[1610394035984,1.0307046,31769.0,31729.0,0.13632608]
[1610394036385,0.93488718,31768.0,31729.0,0.13632608]
[1610394036786,0.0957,31769.0,31729.0,0.13632608]
[1610394036986,1.0,31765.0,31729.0,0.13632608]
[1610394037186,0.91732423,31765.0,31729.0,0.13632608]
[1610394037585,0.0957,31769.0,31729.0,0.13632608]
[1610394037787,0.0957,31769.0,31740.0,0.27206424]
[1610394037986,0.13632608,31741.0,31740.0,0.27206424]